[Event "XVI Memorial Lezcano Montalvo 2024"]
[Site "Gran Canaria"]
[Date "2024.03.24"]
[Round "2.9"]
[White "Fernandez Manrique, Agustin"]
[Black "Lianes Garcia, Marcos"]
[Result "0-1"]
[ECO "D05"]
[WhiteElo "2017"]
[BlackElo "2398"]
[Annotator "TA"]
[PlyCount "84"]
[EventDate "2024.03.23"]
[EventType "swiss"]
[EventCountry "ESP"]
[SourceTitle "playchess.com"]
[Source "ChessBase"]
[SourceQuality "1"]
[TimeControl "5400+30"]

{[%evp 9,84,4,6,-14,0,0,11,0,0,-5,0,4,0,0,0,-32,27,11,16,0,22,-55,-58,-73,-90,-117,-47,-79,-63,-47,-23,-36,0,-7,-3,0,0,-41,0,-44,-29,-19,-9,-32,-37,-26,0,0,0,-68,-21,-406,-411,-597,-517,-534,-521,-556,-554,-517,-515,-477,-515,-486,-491,-471,-447,-537,-530,-541,-506,-504,-467,-625,-600,-1234,-1185]} 1. d4 {[%emt 0:00:15]} d5 {[%emt 0:00:41]} 2. Nf3 {[%emt 0:00:09]} e6 {[%emt 0:00:07]} 3. e3 {[%emt 0:00:33]} Nf6 {[%emt 0:01:38]} 4. Bd3 {[%emt 0:00:55]} b6 {[%emt 0:00:52]} 5. O-O {[%emt 0:00:19][%cal Bh1f1,Bf1f3,Bf3h3][%mdl 32]} Bb7 {[%emt 0:00:04]} 6. a4 {[%emt 0:01:49]} a6 {[%emt 0:01:45]} 7. Ne5 {[%emt 0:01:37]} Bd6 {[%emt 0:01:40]} 8. f4 {[%emt 0:03:05] The position is equal.} O-O {[%emt 0:02:14]} 9. Rf3 {[%emt 0:03:06]} Ne4 {[%emt 0:07:59]} 10. Rh3 {[%emt 0:11:27]} g6 {[%emt 0:05:04] Against Qh5} 11. Nd2 {[%emt 0:02:41]} Nd7 {[%emt 0:08:03]} 12. Ndf3 {[%emt 0:17:01]} f6 {[%emt 0:41:59]} (12... Nxe5 $15 13. fxe5 Be7) 13. Ng4 $1 $11 {[%emt 0:12:09]} Qe7 {[%emt 0:01:36]} 14. Nh6+ {[%emt 0:01:05]} Kg7 {[%emt 0:00:26][%cal Ob6b5] [#]} 15. Nh4 {[%emt 0:00:26]} f5 $15 {[%emt 0:04:43]} ({Inferior is} 15... Kxh6 16. Nf5#) 16. Nf3 {[%emt 0:01:20]} Ndf6 {[%emt 0:00:24] aiming for ...Ng4.} 17. Bxe4 {[%emt 0:14:31]} Nxe4 {[%emt 0:01:01]} (17... dxe4 $17 18. Nh4 c5 (18... Kxh6 19. Nxf5#)) 18. Bd2 {[%emt 0:00:22]} a5 {[%emt 0:02:43]} 19. Be1 {[%emt 0:01:19]} Qd8 {[%emt 0:00:21]} (19... Kh8 {simplifies} 20. Nd2 g5 21. Nxe4 fxe4 22. fxg5 Qxg5 23. Qh5 Qxh5 24. Rxh5 Ba6) 20. Bh4 {[%emt 0:04:46]} Be7 {[%emt 0:00:05]} (20... Qd7 $5) 21. Bxe7 {[%emt 0:00:09]} Qxe7 {[%emt 0:00:02]} 22. Ne5 {[%emt 0:02:26]} c5 {[%emt 0:02:34]} 23. Ra3 {[%emt 0:07:11]} c4 {[%emt 0:02:53]} 24. c3 {[%emt 0:01:06]} Rac8 {[%emt 0:00:17]} 25. g4 {[%emt 0:02:52]} Bc6 {[%emt 0:00:22]} 26. Qe1 {[%emt 0:02:36]} Be8 {[%emt 0:00:31]} 27. g5 {[%emt 0:01:21]} Rb8 {[%emt 0:04:09]} 28. Qh4 $1 {[%emt 0:00:46][%cal Oh6f5] [#] Intending Nxf5+! and mate.} Rh8 {[%emt 0:00:19] Active counter play!} 29. Ra2 {[%emt 0:05:35]} ({White should play} 29. Qe1 $11) 29... b5 {[%emt 0:00:57]} (29... Qb7 $15 {might be stronger.}) 30. Nhf7 $2 {[%emt 0:00:55][%mdl 8192] Now White is beyond hope.} Bxf7 $19 {[%emt 0:00:39]} 31. Qh6+ {[%emt 0:00:01]} Kg8 {[%emt 0:00:06] Black is clearly winning.} 32. Nc6 {[%emt 0:00:05]} Qc7 {[%emt 0:00:26]} 33. Nxb8 {[%emt 0:00:21]} Qxb8 {[%emt 0:00:01]} 34. axb5 {[%emt 0:00:54] White is weak on the light squares} Qxb5 {[%emt 0:00:02]} 35. Rf3 {[%emt 0:00:48]} Be8 {[%emt 0:00:53][%cal Oe4c3] White must now prevent ...Nxc3!} 36. Rf1 {[%emt 0:00:38]} a4 {[%emt 0:00:15]} 37. Qh3 {[%emt 0:01:08]} Qb3 {[%emt 0:00:19]} 38. Rfa1 {[%emt 0:00:09]} Bc6 {[%emt 0:00:28]} 39. Qg2 {[%emt 0:00:14]} Kg7 {[%emt 0:00:17]} 40. Ra3 {[%emt 0:00:14]} Qb7 {[%emt 0:00:10]} 41. h4 {[%emt 0:00:41]} h6 {[%emt 0:00:32] Hoping for ...hxg5.} 42. h5 {[%emt 0:00:23]} hxg5 {[%emt 0:00:09] Weighted Error Value: White=0.46/Black=0.14 (very precise) .  Loses game:     	White=1     	---        Mistake:       	White=2     	Black=3      Inaccurate:     	White=6     	Black=2      OK:         	White=11    	Black=8      Best:        	White=2     	Black=5      Strong:       	White=2     	---} 0-1

[Event "XVI Memorial Lezcano Montalvo 2024"]
[Site "Gran Canaria"]
[Date "2024.03.24"]
[Round "2.10"]
[White "Sanz Wawer, Daniel"]
[Black "Pleschke, Julius Jonas"]
[Result "1-0"]
[ECO "B15"]
[WhiteElo "2397"]
[BlackElo "1993"]
[Annotator "RC"]
[PlyCount "65"]
[EventDate "2024.03.23"]
[EventType "swiss"]
[EventCountry "ESP"]
[SourceTitle "playchess.com"]
[Source "ChessBase"]
[SourceQuality "1"]
[TimeControl "5400+30"]

1. e4 {[%emt 0:00:24]} c6 {[%emt 0:00:21]} 2. d4 {[%emt 0:00:05]} d5 {[%emt 0:00:04]} 3. Nc3 {[%emt 0:00:05]} dxe4 {[%emt 0:00:07]} 4. Nxe4 {[%emt 0:00:06]} Nf6 {[%emt 0:00:06]} 5. Nxf6+ {[%emt 0:00:04]} exf6 {[%emt 0:00:05]} 6. c3 {[%emt 0:00:14]} Bd6 {[%emt 0:00:29]} 7. Bd3 {[%emt 0:00:06]} O-O {[%emt 0:00:06]} 8. Qc2 {[%emt 0:00:08]} Re8+ {[%emt 0:00:04]} 9. Ne2 {[%emt 0:00:18]} h5 {[%emt 0:00:09]} 10. Be3 {[%emt 0:00:14]} Nd7 {[%emt 0:11:20]} 11. O-O-O {[%emt 0:00:16]} Nf8 {[%emt 0:00:54]} 12. Kb1 {[%emt 0:00:18]} g6 {[%emt 0:08:32]} 13. c4 {[%emt 0:05:26]} Qc7 {[%emt 0:09:58]} 14. Nc3 {[%emt 0:02:20]} f5 {[%emt 0:07:38]} 15. g3 {[%emt 0:07:59]} Bd7 {[%emt 0:08:24]} 16. Rhe1 {[%emt 0:04:06]} Rac8 {[%emt 0:17:39]} 17. Qd2 {[%emt 0:04:57]} Be6 {[%emt 0:06:21]} 18. d5 {[%emt 0:10:06]} cxd5 {[%emt 0:02:04]} 19. Nb5 {[%emt 0:04:27]} Qd7 {[%emt 0:07:43]} 20. cxd5 {[%emt 0:19:38]} Bxd5 {[%emt 0:00:21]} 21. Be2 {[%emt 0:02:44]} Re5 {[%emt 0:11:53]} 22. Nc3 {[%emt 0:06:15]} Rxc3 {[%emt 0:04:11]} 23. Qxc3 {[%emt 0:01:56]} Qe6 {[%emt 0:00:31]} 24. b3 {[%emt 0:00:53]} Be4+ {[%emt 0:01:38]} 25. Ka1 {[%emt 0:02:38]} Rd5 {[%emt 0:01:45]} 26. Rxd5 {[%emt 0:03:53]} Bxd5 {[%emt 0:00:29]} 27. Bxa7 {[%emt 0:03:49]} Bc6 {[%emt 0:00:35]} 28. Bc4 {[%emt 0:01:56]} Qd7 {[%emt 0:00:26]} 29. Qf6 {[%emt 0:02:10]} Nh7 {[%emt 0:00:33]} 30. Qxg6+ {[%emt 0:00:29]} Kf8 {[%emt 0:00:07]} 31. Qh6+ {[%emt 0:01:05]} Kg8 {[%emt 0:00:14]} 32. Bd4 {[%emt 0:00:37]} Bf8 {[%emt 0:01:11]} 33. Qg6+ {[%emt 0:00:09]} 1-0

[Event "XVI Memorial Lezcano Montalvo 2024"]
[Site "Gran Canaria"]
[Date "2024.03.24"]
[Round "2.11"]
[White "Blanco Garcia Bajo, David"]
[Black "Barlov, Dragan"]
[Result "1/2-1/2"]
[ECO "B25"]
[WhiteElo "2004"]
[BlackElo "2387"]
[Annotator "RC"]
[PlyCount "119"]
[EventDate "2024.03.23"]
[EventType "swiss"]
[EventCountry "ESP"]
[SourceTitle "playchess.com"]
[Source "ChessBase"]
[SourceQuality "1"]
[TimeControl "5400+30"]

1. e4 {[%emt 0:00:04]} c5 {[%emt 0:00:58]} 2. Nc3 {[%emt 0:00:13]} Nc6 {[%emt 0:00:21]} 3. Nge2 {[%emt 0:00:17]} d6 {[%emt 0:04:17]} 4. g3 {[%emt 0:00:25]} g6 {[%emt 0:00:49]} 5. Bg2 {[%emt 0:01:27]} Bg7 {[%emt 0:00:06]} 6. O-O {[%emt 0:00:41]} e6 {[%emt 0:00:29]} 7. d3 {[%emt 0:00:28]} Nge7 {[%emt 0:00:07]} 8. Bg5 {[%emt 0:00:20]} h6 {[%emt 0:12:00]} 9. Be3 {[%emt 0:00:13]} Nd4 {[%emt 0:00:05]} 10. Rb1 {[%emt 0:03:48]} Nec6 {[%emt 0:05:48]} 11. Qd2 {[%emt 0:03:04]} Qa5 {[%emt 0:04:11]} 12. a3 {[%emt 0:11:14]} Nxe2+ {[%emt 0:01:09]} 13. Nxe2 {[%emt 0:01:02]} Qxd2 {[%emt 0:02:59]} 14. Bxd2 {[%emt 0:00:04]} Bd7 {[%emt 0:05:28]} 15. f4 {[%emt 0:09:10]} Ke7 {[%emt 0:07:01]} 16. c4 {[%emt 0:07:26]} a5 {[%emt 0:10:50]} 17. Bc3 {[%emt 0:12:45]} Nd4 {[%emt 0:05:10]} 18. Nxd4 {[%emt 0:01:46]} cxd4 {[%emt 0:00:05]} 19. Bd2 {[%emt 0:00:10]} b5 {[%emt 0:12:13]} 20. b3 {[%emt 0:07:48]} Rhc8 {[%emt 0:01:52]} 21. Rfc1 {[%emt 0:02:47]} Ra7 {[%emt 0:02:31]} 22. Kf2 {[%emt 0:04:40]} Ke8 {[%emt 0:08:51]} 23. cxb5 {[%emt 0:10:41]} Rxc1 {[%emt 0:00:09]} 24. Rxc1 {[%emt 0:00:06]} Bxb5 {[%emt 0:00:08]} 25. Ke2 {[%emt 0:00:48]} Kd7 {[%emt 0:03:57]} 26. e5 {[%emt 0:02:46]} d5 {[%emt 0:05:22]} 27. Be1 {[%emt 0:12:34]} Bf8 {[%emt 0:00:33]} 28. Bf2 {[%emt 0:03:37]} Bxa3 {[%emt 0:01:23]} 29. Bxd4 {[%emt 0:00:12]} Rb7 {[%emt 0:00:24]} 30. Ra1 {[%emt 0:00:37]} Bb4 {[%emt 0:00:05]} 31. Bf1 {[%emt 0:01:26]} Rc7 {[%emt 0:01:48]} 32. Kd1 {[%emt 0:00:07]} Rc6 {[%emt 0:01:49]} 33. Rc1 {[%emt 0:00:41]} Ra6 {[%emt 0:00:44]} 34. Bc5 {[%emt 0:00:31]} Bxc5 {[%emt 0:01:00]} 35. Rxc5 {[%emt 0:04:02]} Rb6 36. Kc2 {[%emt 0:00:00]} a4 {[%emt 0:00:30]} 37. bxa4 {[%emt 0:00:00]} Bxa4+ {[%emt 0:00:04]} 38. Kc3 {[%emt 0:00:00]} Rb3+ {[%emt 0:01:36]} 39. Kd4 {[%emt 0:00:00]} Rb2 {[%emt 0:00:57]} 40. Ra5 {[%emt 0:00:48]} Bc6 {[%emt 0:00:11]} 41. Kc5 {[%emt 0:00:42]} Kc7 {[%emt 0:01:11]} 42. d4 {[%emt 0:01:03]} Rc2+ {[%emt 0:00:42]} 43. Kb4 {[%emt 0:00:07]} Kb6 {[%emt 0:01:21]} 44. Ra6+ {[%emt 0:00:08]} Kb7 {[%emt 0:00:01]} 45. h4 {[%emt 0:00:46]} Rc1 {[%emt 0:00:41]} 46. Bd3 {[%emt 0:00:45]} Rd1 {[%emt 0:00:56]} 47. Be2 {[%emt 0:00:13]} Rd2 {[%emt 0:00:30]} 48. Bf1 {[%emt 0:00:07]} Kc7 {[%emt 0:00:35]} 49. Ra7+ {[%emt 0:00:41]} Kb6 {[%emt 0:00:03]} 50. Ra6+ {[%emt 0:00:10]} Kb7 {[%emt 0:00:55]} 51. Kc5 {[%emt 0:00:16]} Rc2+ {[%emt 0:00:22]} 52. Kd6 {[%emt 0:00:19]} Rc3 {[%emt 0:00:40]} 53. g4 {[%emt 0:01:02]} Rc1 {[%emt 0:00:28]} 54. Be2 {[%emt 0:00:41]} Rc2 {[%emt 0:00:16]} 55. Bd3 {[%emt 0:00:41]} Rc3 {[%emt 0:00:13]} 56. Be2 {[%emt 0:00:17]} Rc2 {[%emt 0:00:22]} 57. Bd3 {[%emt 0:01:19]} Rc3 {[%emt 0:00:08]} 58. Be2 {[%emt 0:00:17]} Rc2 {[%emt 0:00:22]} 59. Bd3 {[%emt 0:00:34]} Rc3 {[%emt 0:00:17]} 60. Be2 {[%emt 0:00:13]} 1/2-1/2

[Event "XVI Memorial Lezcano Montalvo 2024"]
[Site "Gran Canaria"]
[Date "2024.03.24"]
[Round "2.12"]
[White "Garcia Blanco, Omar"]
[Black "Segura Marsa, Andres"]
[Result "1-0"]
[ECO "A35"]
[WhiteElo "2377"]
[BlackElo "1987"]
[Annotator "RC"]
[PlyCount "55"]
[EventDate "2024.03.23"]
[EventType "swiss"]
[EventCountry "ESP"]
[SourceTitle "playchess.com"]
[Source "ChessBase"]
[SourceQuality "1"]
[TimeControl "5400+30"]

1. Nf3 {[%emt 0:00:09]} c5 {[%emt 0:00:14]} 2. c4 {[%emt 0:00:10]} Nc6 {[%emt 0:00:20]} 3. Nc3 {[%emt 0:00:15]} g6 {[%emt 0:01:04]} 4. e3 {[%emt 0:00:17]} Nf6 {[%emt 0:01:22]} 5. d4 {[%emt 0:00:19]} cxd4 {[%emt 0:01:01]} 6. exd4 {[%emt 0:00:14]} d5 {[%emt 0:01:31]} 7. cxd5 {[%emt 0:00:24]} Nxd5 {[%emt 0:00:28]} 8. Qb3 {[%emt 0:00:24]} Nxc3 {[%emt 0:02:02]} 9. Bc4 {[%emt 0:01:30]} e6 {[%emt 0:02:14]} 10. bxc3 {[%emt 0:00:12]} Bg7 {[%emt 0:01:23]} 11. Ba3 {[%emt 0:00:15]} Na5 {[%emt 0:01:34]} 12. Bb5+ {[%emt 0:03:15]} Bd7 {[%emt 0:00:32]} 13. Qb4 {[%emt 0:06:39]} Nc6 {[%emt 0:05:34]} 14. Qb2 {[%emt 0:00:37]} Bf8 {[%emt 0:23:44]} 15. h4 {[%emt 0:05:16]} Bxa3 {[%emt 0:08:34]} 16. Qxa3 {[%emt 0:00:07]} Qa5 {[%emt 0:01:47]} 17. Qb2 {[%emt 0:01:44]} h6 {[%emt 0:02:03]} 18. Rb1 {[%emt 0:05:49]} Qc7 {[%emt 0:09:59]} 19. O-O {[%emt 0:03:29]} O-O {[%emt 0:15:09]} 20. Qd2 {[%emt 0:01:19]} Kg7 {[%emt 0:03:04]} 21. Rfe1 {[%emt 0:01:48]} h5 {[%emt 0:01:26]} 22. Bd3 {[%emt 0:04:27]} Rac8 {[%emt 0:02:21]} 23. c4 {[%emt 0:01:15]} Rfd8 {[%emt 0:03:09]} 24. d5 {[%emt 0:04:02]} Na5 {[%emt 0:01:54]} 25. Qb2+ {[%emt 0:05:26]} Kg8 {[%emt 0:00:40]} 26. Qf6 {[%emt 0:07:18]} Be8 {[%emt 0:01:39]} 27. Ng5 {[%emt 0:00:23]} exd5 {[%emt 0:01:30]} 28. Bxg6 {[%emt 0:01:53]} 1-0

[Event "XVI Memorial Lezcano Montalvo 2024"]
[Site "Gran Canaria"]
[Date "2024.03.24"]
[Round "2.13"]
[White "Perez Garcia, Jimena"]
[Black "Fiorito, Francisco"]
[Result "0-1"]
[ECO "A50"]
[WhiteElo "1992"]
[BlackElo "2368"]
[Annotator "RC"]
[PlyCount "82"]
[EventDate "2024.03.23"]
[EventType "swiss"]
[EventCountry "ESP"]
[SourceTitle "playchess.com"]
[Source "ChessBase"]
[SourceQuality "1"]
[TimeControl "5400+30"]

1. d4 {[%emt 1:31:00]} Nf6 {[%emt 0:04:38]} 2. c4 {[%emt 0:00:00]} b6 {[%emt 0:00:51]} 3. Nc3 {[%emt 0:00:00]} Bb7 {[%emt 0:00:05]} 4. Qc2 {[%emt 0:00:00]} d5 {[%emt 0:00:05]} 5. cxd5 {[%emt 0:00:00]} Nxd5 {[%emt 0:00:05]} 6. Nf3 {[%emt 0:00:00]} Nxc3 {[%emt 0:00:41]} 7. bxc3 {[%emt 0:00:00]} e6 {[%emt 0:00:08]} 8. e4 {[%emt 0:00:00]} Be7 {[%emt 0:00:19]} 9. Bd3 {[%emt 0:00:00]} O-O {[%emt 0:00:28]} 10. Bf4 {[%emt 0:00:00]} c5 {[%emt 0:00:45]} 11. d5 {[%emt 0:00:00]} exd5 {[%emt 0:03:49]} 12. exd5 {[%emt 0:00:00]} h6 {[%emt 0:01:35]} 13. O-O {[%emt 0:00:00]} Bd6 {[%emt 0:03:11]} 14. Bxd6 {[%emt 0:00:00]} Qxd6 {[%emt 0:00:02]} 15. Rad1 {[%emt 0:00:00]} Nd7 {[%emt 0:00:50]} 16. Rfe1 {[%emt 0:00:00]} Rfe8 {[%emt 0:02:03]} 17. c4 {[%emt 0:00:00]} Nf6 {[%emt 0:11:04]} 18. Qa4 {[%emt 0:00:00]} Rxe1+ {[%emt 0:04:04]} 19. Rxe1 {[%emt 0:00:00]} a6 {[%emt 0:00:38]} 20. Qb3 {[%emt 0:00:00]} b5 {[%emt 0:01:24]} 21. cxb5 {[%emt 0:00:00]} Bxd5 {[%emt 0:01:20]} 22. Bc4 {[%emt 0:00:00]} Bxc4 {[%emt 0:04:22]} 23. Qxc4 {[%emt 0:00:00]} axb5 {[%emt 0:00:05]} 24. Qxb5 {[%emt 0:00:00]} Rxa2 {[%emt 0:01:48]} 25. h3 {[%emt 0:00:00]} Ra8 {[%emt 0:01:04]} 26. Rc1 {[%emt 0:00:00]} Rc8 {[%emt 0:01:18]} 27. Qb7 {[%emt 0:00:00]} Rb8 {[%emt 0:05:13]} 28. Qa7 {[%emt 0:00:00]} Rc8 {[%emt 0:03:21]} 29. Qb7 {[%emt 0:00:00]} Qc7 {[%emt 0:04:37]} 30. Qb5 {[%emt 0:01:52]} c4 {[%emt 0:02:29]} 31. Nd4 {[%emt 0:07:17]} Ne4 {[%emt 0:06:32]} 32. Qf5 {[%emt 0:02:40]} Nd6 {[%emt 0:01:25]} 33. Qe5 {[%emt 0:03:06]} Qb6 {[%emt 0:02:18]} 34. Nf5 {[%emt 0:01:00]} Nxf5 {[%emt 0:00:07]} 35. Qxf5 {[%emt 0:00:02]} Qc6 {[%emt 0:00:13]} 36. Rc3 {[%emt 0:00:26]} Qa6 {[%emt 0:00:46]} 37. Rf3 {[%emt 0:00:45]} c3 {[%emt 0:02:56]} 38. Qxf7+ {[%emt 0:00:43]} Kh8 {[%emt 0:00:03]} 39. Rg3 {[%emt 0:00:36]} Qa1+ {[%emt 0:00:20]} 40. Kh2 {[%emt 0:00:01]} c2 {[%emt 0:00:12]} 41. Re3 {[%emt 0:01:01]} c1=Q {[%emt 0:01:14]} 0-1

[Event "XVI Memorial Lezcano Montalvo 2024"]
[Site "Gran Canaria"]
[Date "2024.03.24"]
[Round "2.14"]
[White "Larino Nieto, David"]
[Black "Zhou, Lepu Coco"]
[Result "1-0"]
[ECO "E05"]
[WhiteElo "2365"]
[BlackElo "1980"]
[Annotator "RC"]
[PlyCount "101"]
[EventDate "2024.03.23"]
[EventType "swiss"]
[EventCountry "ESP"]
[SourceTitle "playchess.com"]
[Source "ChessBase"]
[SourceQuality "1"]
[TimeControl "5400+30"]

1. g3 {[%emt 0:00:04]} d5 {[%emt 0:00:47]} 2. c4 {[%emt 0:00:42]} e6 {[%emt 0:00:26]} 3. Bg2 {[%emt 0:00:14]} Nf6 {[%emt 0:00:28]} 4. Nf3 {[%emt 0:00:28]} Be7 {[%emt 0:00:16]} 5. O-O {[%emt 0:00:07]} O-O {[%emt 0:00:21]} 6. d4 {[%emt 0:00:20]} dxc4 {[%emt 0:01:02]} 7. Nbd2 {[%emt 0:00:44]} b5 {[%emt 0:08:38]} 8. a4 {[%emt 0:08:31]} c6 {[%emt 0:01:31]} 9. Ne5 {[%emt 0:04:35]} Qxd4 {[%emt 0:05:52]} 10. Nxc6 {[%emt 0:03:47]} Nxc6 {[%emt 0:00:21]} 11. Bxc6 {[%emt 0:00:06]} Rb8 {[%emt 0:00:29]} 12. axb5 {[%emt 0:00:11]} Bb7 {[%emt 0:07:26]} 13. Ra4 {[%emt 0:02:20]} Bxc6 {[%emt 0:04:34]} 14. Rxc4 {[%emt 0:07:16]} Qd5 {[%emt 0:00:46]} 15. bxc6 {[%emt 0:00:19]} Rfc8 {[%emt 0:00:28]} 16. e4 {[%emt 0:04:11]} Qb5 {[%emt 0:01:57]} 17. Qc2 {[%emt 0:00:26]} Rb6 {[%emt 0:04:48]} 18. c7 {[%emt 0:00:02]} Rb7 {[%emt 0:07:09]} 19. Nf3 {[%emt 0:01:01]} Ne8 {[%emt 0:06:47]} 20. Nd4 {[%emt 0:01:30]} Qd7 {[%emt 0:03:49]} 21. Nc6 {[%emt 0:05:32]} Bd6 {[%emt 0:07:13]} 22. Be3 {[%emt 0:03:35]} Rbxc7 {[%emt 0:06:56]} 23. Rc1 {[%emt 0:00:03]} e5 {[%emt 0:02:16]} 24. Kg2 {[%emt 0:02:08]} Nf6 {[%emt 0:07:57]} 25. Bg5 {[%emt 0:08:55]} h6 {[%emt 0:04:11]} 26. Bxf6 {[%emt 0:00:37]} gxf6 {[%emt 0:00:04]} 27. b4 {[%emt 0:00:58]} Bxb4 {[%emt 0:07:54]} 28. Ne7+ {[%emt 0:01:40]} Qxe7 {[%emt 0:00:07]} 29. Rxc7 {[%emt 0:00:04]} Rxc7 {[%emt 0:00:09]} 30. Qxc7 {[%emt 0:00:04]} Qxc7 {[%emt 0:00:04]} 31. Rxc7 {[%emt 0:00:06]} a5 {[%emt 0:00:05]} 32. Ra7 {[%emt 0:00:04]} Kg7 {[%emt 0:00:41]} 33. f3 {[%emt 0:00:17]} Kg6 {[%emt 0:01:03]} 34. Ra6 {[%emt 0:00:09]} Kg5 {[%emt 0:03:28]} 35. h4+ {[%emt 0:00:37]} Kg6 {[%emt 0:00:05]} 36. g4 {[%emt 0:00:21]} Be1 {[%emt 0:01:44]} 37. h5+ {[%emt 0:00:02]} Kg7 {[%emt 0:01:07]} 38. Ra8 {[%emt 0:00:13]} Bc3 {[%emt 0:02:17]} 39. Kf1 {[%emt 0:00:05]} Bb4 {[%emt 0:02:23]} 40. Ke2 {[%emt 0:00:02]} Bc3 {[%emt 0:00:58]} 41. Kd3 {[%emt 0:00:01]} Be1 {[%emt 0:00:30]} 42. Kc4 {[%emt 0:00:04]} Bb4 {[%emt 0:01:47]} 43. Kd5 {[%emt 0:00:01]} Bc3 {[%emt 0:00:29]} 44. Kc6 {[%emt 0:00:02]} f5 {[%emt 0:00:22]} 45. exf5 {[%emt 0:00:13]} Kf6 {[%emt 0:00:21]} 46. Kd5 {[%emt 0:00:24]} Ke7 {[%emt 0:00:18]} 47. Ra6 {[%emt 0:00:22]} Kd7 {[%emt 0:01:03]} 48. Rxh6 {[%emt 0:01:09]} f6 {[%emt 0:00:12]} 49. Rxf6 {[%emt 0:00:22]} e4 {[%emt 0:00:23]} 50. Rd6+ {[%emt 0:00:02]} Ke7 {[%emt 0:00:14]} 51. fxe4 {[%emt 0:00:09]} 1-0

[Event "XVI Memorial Lezcano Montalvo 2024"]
[Site "Gran Canaria"]
[Date "2024.03.24"]
[Round "2.15"]
[White "Sosa Suarez, Carla Cristina"]
[Black "Akhvlediani, Irakli"]
[Result "1-0"]
[ECO "A13"]
[WhiteElo "1980"]
[BlackElo "2356"]
[Annotator "RC"]
[PlyCount "95"]
[EventDate "2024.03.23"]
[EventType "swiss"]
[EventCountry "ESP"]
[SourceTitle "playchess.com"]
[Source "ChessBase"]
[SourceQuality "1"]
[TimeControl "5400+30"]

1. c4 {[%emt 0:01:18]} Nf6 {[%emt 0:00:22]} 2. Nf3 {[%emt 0:00:13]} e6 {[%emt 0:00:20]} 3. e3 {[%emt 0:01:17]} d5 {[%emt 0:00:08]} 4. b3 {[%emt 0:00:54]} c5 {[%emt 0:00:11]} 5. Bb2 {[%emt 0:00:53]} Nc6 {[%emt 0:00:07]} 6. cxd5 {[%emt 0:01:24]} exd5 {[%emt 0:00:07]} 7. Bb5 {[%emt 0:05:07]} Bd6 {[%emt 0:02:37]} 8. Bxc6+ {[%emt 0:03:02]} bxc6 {[%emt 0:00:06]} 9. d3 {[%emt 0:03:14]} O-O {[%emt 0:00:31]} 10. O-O {[%emt 0:01:28]} Re8 {[%emt 0:00:53]} 11. Qc2 {[%emt 0:02:58]} a5 {[%emt 0:02:28]} 12. a4 {[%emt 0:00:59]} Bg4 {[%emt 0:04:48]} 13. Nbd2 {[%emt 0:00:17]} Nd7 {[%emt 0:04:07]} 14. h3 {[%emt 0:03:01]} Bf5 {[%emt 0:03:16]} 15. Rfe1 {[%emt 0:03:00]} f6 {[%emt 0:07:10]} 16. e4 {[%emt 0:05:34]} Bg6 {[%emt 0:00:30]} 17. Ba3 {[%emt 0:03:33]} Bf8 {[%emt 0:02:58]} 18. Qc3 {[%emt 0:08:51]} Qb6 {[%emt 0:04:32]} 19. Rac1 {[%emt 0:03:12]} Rab8 {[%emt 0:01:13]} 20. g3 {[%emt 0:12:11]} Bf7 {[%emt 0:10:46]} 21. Rb1 {[%emt 0:06:43]} Re6 {[%emt 0:02:50]} 22. Kg2 {[%emt 0:04:39]} Rbe8 {[%emt 0:00:23]} 23. Nh4 {[%emt 0:10:41]} g5 {[%emt 0:10:55]} 24. Nf5 {[%emt 0:01:26]} Bg6 {[%emt 0:00:12]} 25. g4 {[%emt 0:00:50]} Ne5 {[%emt 0:02:10]} 26. Nf3 {[%emt 0:01:30]} Nxd3 {[%emt 0:03:03]} 27. Qxd3 {[%emt 0:02:48]} dxe4 {[%emt 0:00:04]} 28. Qc4 {[%emt 0:00:22]} exf3+ {[%emt 0:00:32]} 29. Kg1 {[%emt 0:00:54]} Bf7 {[%emt 0:00:15]} 30. Rxe6 {[%emt 0:00:33]} Rxe6 {[%emt 0:00:29]} 31. Qd3 {[%emt 0:01:32]} Re5 {[%emt 0:07:13]} 32. Bb2 {[%emt 0:01:37]} Rd5 {[%emt 0:05:24]} 33. Qxf3 {[%emt 0:00:58]} Qd8 {[%emt 0:00:24]} 34. Ne3 {[%emt 0:02:15]} Rd6 {[%emt 0:00:04]} 35. Nc4 {[%emt 0:02:06]} Bd5 {[%emt 0:00:22]} 36. Qc3 {[%emt 0:01:57]} Re6 {[%emt 0:00:05]} 37. Re1 {[%emt 0:00:14]} Qe7 {[%emt 0:01:47]} 38. Re3 {[%emt 0:01:41]} Bg7 {[%emt 0:01:52]} 39. Nxa5 {[%emt 0:01:26]} Kf7 {[%emt 0:06:20]} 40. Nc4 {[%emt 0:00:28]} Bf8 {[%emt 0:01:13]} 41. a5 {[%emt 0:01:12]} Qd8 {[%emt 0:02:41]} 42. a6 {[%emt 0:00:53]} Rxe3 {[%emt 0:03:46]} 43. Nxe3 {[%emt 0:02:49]} Be7 {[%emt 0:01:17]} 44. Qd3 {[%emt 0:00:00]} Qa5 {[%emt 0:00:54]} 45. Nxd5 {[%emt 0:00:00]} cxd5 {[%emt 0:01:39]} 46. Qxd5+ {[%emt 0:00:00]} Kf8 {[%emt 0:00:09]} 47. Qa8+ {[%emt 0:00:00]} Kf7 {[%emt 0:00:07]} 48. Qb7 {[%emt 0:00:00]} 1-0